Cogmind - Beta 13 *** ADVENTURER MODE // 2024.03.03 @ 05:28:48 Player: Khazzy Result: Destroyed by G-47 Trooper with Particle Gun Performance ------------- Evolutions (2) 1000 Regions Visited (6) 1200 Robots Destroyed (63) 315 Value Destroyed (2277) 2277 Prototype IDs (2) 40 Alien Tech Used (0) 0 Bonus (268) 268 TOTAL SCORE: 5100 Bonus ------- High Alert Combat Kills 46 Follower Combat Kills 58 Entered Garrisons 200 Friendly Fire -36 Cogmind --------- Core Integrity 0/550 Matter 300/300 Energy 100/100 System Corruption 0% Temperature Cool (36) Movement Core (1400) Ox27 Location -8/Garrison Parts ------- > --- POWER (2) -------- (None) > --- PROPULSION (4) --- (None) > --- UTILITY (3) ------ High-capacity Storage Unit High-capacity Storage Unit Authchip [R/Combat] > --- WEAPON (2) ------- Katana > --- INVENTORY (20) --- Aluminum Leg Carbon-fiber Leg Improved Heat Sink Large Storage Unit Experimental Sensor Array Light Armor Plating Hardened Medium Armor Plating Hacking Suite Authchip [R/NC] EM Pulse Gun Particle Cannon Ion Cannon Light Assault Rifle Light Assault Rifle Light Assault Rifle Grenade Launcher Peak State ------------ > --- POWER ------------ Improved Ion Engine Light Nuclear Core > --- PROPULSION ------- Titanium Leg Titanium Leg Titanium Leg Titanium Leg > --- UTILITY ---------- High-capacity Storage Unit High-capacity Storage Unit Authchip [R/Combat] > --- WEAPON ----------- Particle Cannon Ion Cannon > --- INVENTORY -------- Aluminum Leg Aluminum Leg Aluminum Leg Carbon-fiber Leg Large Storage Unit Experimental Sensor Array Light Armor Plating Hardened Medium Armor Plating Hacking Suite Authchip [R/NC] EM Pulse Gun Light Assault Rifle Light Assault Rifle Light Assault Rifle Light Cannon Grenade Launcher Katana [Rating: 31] Favorites ----------- Power Light Ion Engine Engine Light Ion Engine Power Core Light Nuclear Core Propulsion Titanium Leg Treads Light Treads Leg Titanium Leg Utility High-capacity Storage Unit Device Reaction Control System Storage High-capacity Storage Unit Hackware Authchip [R/Combat] Protection Light Armor Plating Weapon Light Cannon Energy Gun EM Pulse Gun Energy Cannon Particle Cannon Ballistic Gun Minigun Ballistic Cannon Light Cannon Launcher Grenade Launcher Slashing Weapon Katana Build | -11 -10 -10 -10 -9 -8 -8 ------- Run | Yrd Mat Min Exi Min Mat Gar Slots Evolved 4 | . . . . . 4 . Power 1 | . . . . . 1 . Propulsion 2 | . . . . . 2 . Utility 1 | . . . . . 1 . Weapon . | . . . . . . . Parts Attached 46 | 6 1 . 1 3 18 17 Power 14 | 1 . . . 1 7 5 Engine 10 | 1 . . . 1 5 3 Core 4 | . . . . . 2 2 Reactor . | . . . . . . . Propulsion 12 | 2 . . . . 6 4 Treads 1 | . . . . . 1 . Leg 11 | 2 . . . . 5 4 Wheel . | . . . . . . . Hover . | . . . . . . . Flight . | . . . . . . . Utility 9 | 1 1 . 1 . 4 2 Device 3 | . . . . . 2 1 Storage 4 | 1 1 . 1 . 1 . Processor . | . . . . . . . Hackware 1 | . . . . . . 1 Protection 1 | . . . . . 1 . Artifact . | . . . . . . . Weapon 11 | 2 . . . 2 1 6 Energy Gun 2 | 2 . . . . . . Energy Cannon 2 | . . . . . . 2 Ballistic Gun 2 | . . . . . 1 1 Ballistic Cannon 3 | . . . . 2 . 1 Launcher 1 | . . . . . . 1 Special Weapon . | . . . . . . . Impact Weapon . | . . . . . . . Slashing Weapon 1 | . . . . . . 1 Piercing Weapon . | . . . . . . . Special Melee Weapon . | . . . . . . . Unidentified Prototypes . | . . . . . . . Parts Lost 27 | . . . . 2 5 20 Power 9 | . . . . . 2 7 Propulsion 8 | . . . . . . 8 Utility 4 | . . . . . 2 2 Weapon 6 | . . . . 2 1 3 Highest Loss Streak 7 | . . . . 2 2 7 To Critical Strikes . | . . . . . . . Average Slot Usage (%) 96 | . 98 100 100 99 93 94 Engine 13 | . 14 14 14 14 13 13 Core 2 | . . . . . 4 2 Leg 30 | . 28 28 28 28 30 33 Device 2 | . . . . . 6 1 Storage 22 | . 26 28 28 28 18 18 Hackware 1 | . . . . . . 5 Protection 1 | . . . . . 2 1 Energy Gun 6 | . 28 28 28 . . . Energy Cannon 1 | . . . . . . 5 Ballistic Gun 2 | . . . . . 5 3 Ballistic Cannon 10 | . . . . 27 12 2 Naked Turns . | . . . . . . . Heaviest Build 105 | 14 34 34 69 71 105 105 Greatest Support 68 | 20 20 20 20 20 68 68 Greatest Overweight (x) 8 | 3 1 1 3 3 3 8 Average Overweight (x) 1 | . . 1 1 3 1 1 Largest Inventory Capacity 20 | 8 15 15 20 20 20 20 Average Capacity 18 | 7 14 15 16 20 20 20 Most Carried 20 | 8 13 14 15 13 20 20 Average Carried 14 | 5 10 13 13 11 16 16 Final Capacity 20 | 8 15 15 20 20 20 20 Final Carried 20 | 6 13 14 13 12 20 16 Class Distribution -------------------- 89% | Mutant 10% | Scavenger-Mutant Dominant Class ---------------- Mutant | -10/Materials Mutant | -10/Mines Mutant | -10/Exiles Mutant | -9/Mines Mutant | -8/Materials Scavenger-Mutant | -8/Garrison Resources | -11 -10 -10 -10 -9 -8 -8 ----------- Run | Yrd Mat Min Exi Min Mat Gar Matter Collected 1612 | 214 54 . 10 86 833 415 Remotely . | . . . . . . . Salvage Created 2297 | . 43 . . 91 1111 1052 Parts 95 | . 4 . . 4 45 42 Haulers Intercepted . | . . . . . . . Recyclers Shooed 2 | . . . . . 2 . Parts Field Recycled . | . . . . . . . Retrieved Matter . | . . . . . . . Parts Self-Destructed . | . . . . . . . Prevented . | . . . . . . . Kills | -11 -10 -10 -10 -9 -8 -8 ------- Run | Yrd Mat Min Exi Min Mat Gar Combat Hostiles Destroyed 59 | . 2 . . 2 29 26 Melee 6 | . . . . . . 6 Guns 11 | . 2 . . . 7 2 Cannons 34 | . . . . 2 22 10 AOE 8 | . . . . . . 8 Classes Destroyed 10 | . 1 . . 1 6 2 Worker 1 | . . . . . 1 . Watcher 2 | . . . . . 2 . Swarmer 13 | . 2 . . . 4 7 Grunt 28 | . . . . 2 17 9 Brawler 6 | . . . . . 2 4 Duelist 3 | . . . . . 1 2 Sentry 7 | . . . . . 5 2 Demolisher 1 | . . . . . . 1 Hunter 1 | . . . . . . 1 Zionite 1 | . . . . . 1 . Best Kill Streak 12 | . 2 . . 2 6 12 Combat Bots Only 12 | . 2 . . 2 6 12 Max Kills in Single Turn 2 | . 2 . . 1 2 2 Gunslinging 1 | . 1 . . . . . Exploded 2 | . . . . . . 2 Melee 1 | . . . . . . 1 Uniques/NPCs Destroyed . | . . . . . . . Combat | -11 -10 -10 -10 -9 -8 -8 -------- Run | Yrd Mat Min Exi Min Mat Gar Hostile Shots Fired 389 | . 6 . . 41 129 213 Missed 85 | . 2 . . 8 31 44 Damage Taken 3613 | . 45 . . 312 1066 2190 Core 638 | . 8 . . 79 131 420 Absorbed by Shields 173 | . . . . . 71 102 Ignored by Resistances 1085 | . 14 . . 97 333 641 Regen/Repaired (Parts) 6 | . . . . . 6 . Core Remaining (%) 82 | 100 . . . 65 . . Volleys Fired 165 | . 3 . . 14 93 55 Largest 2 | . 2 . . 2 2 2 Hottest 128 | . 80 . . 80 70 128 Shots Fired 314 | . 6 . . 24 186 98 Gun 87 | . 6 . . 9 57 15 Cannon 219 | . . . . 15 129 75 Launcher 8 | . . . . . . 8 Special . | . . . . . . . Kinetic 231 | . . . . 15 186 30 Thermal 60 | . . . . . . 60 Explosive 8 | . . . . . . 8 Electromagnetic 15 | . 6 . . 9 . . Robot Hit Streak 25 | . 5 . . 15 25 12 Robot Miss Streak 7 | . 1 . . 2 7 2 Penetration Max . | . . . . . . . Secondary Targets 1 | . 1 . . . . . Max Gunslinging Chain 1 | . 1 . . . . . Shots Hit Robots 270 | . 5 . . 18 141 106 Core Hits 117 | . 3 . . 6 63 45 Critical Kills . | . . . . . . . Critical Parts Destroyed . | . . . . . . . Critical Strikes 11 | . . . . 1 6 4 Blast 8 | . . . . 1 6 1 Sever 3 | . . . . . . 3 Melee Attacks 32 | . . . . . . 32 Impact . | . . . . . . . Slashing 32 | . . . . . . 32 Piercing . | . . . . . . . Sneak Attacks . | . . . . . . . Combat Hostiles . | . . . . . . . Follow-up Attacks . | . . . . . . . Damage Inflicted 6141 | 5 88 11 . 320 2429 3288 Guns 1054 | . 62 . . 100 746 146 Cannons 2927 | . . . . 201 1501 1225 Explosions 728 | . 26 . . . . 702 Melee 1215 | . . . . . . 1215 Ramming 217 | 5 . 11 . 19 182 . Kinetic 2779 | . . . . 201 2247 331 Thermal 1066 | . 26 . . . . 1040 Explosive 702 | . . . . . . 702 Electromagnetic 162 | . 62 . . 100 . . Impact . | . . . . . . . Slashing 1215 | . . . . . . 1215 Piercing . | . . . . . . . Highest Corruption . | . . . . . . . Average Corruption . | . . . . . . . Corruption Purged . | . . . . . . . Corruption Blocked . | . . . . . . . Overload Shots . | . . . . . . . Overflow Damage 87 | . . . . . 16 71 Projectiles 54 | . . . . . 13 41 Explosions 17 | . . . . . . 17 Melee 16 | . . . . . 3 13 Knockbacks 29 | . . 1 . 2 24 2 Impact 3 | . . 1 . . 2 . Kinetic 24 | . . . . 2 20 2 Secondary 2 | . . . . . 2 . Self-Inflicted Damage 172 | . 20 . . . . 152 Shots 8 | . 1 . . . . 7 Rammed . | . . . . . . . Targets Rammed 36 | 1 . 4 . 4 27 . Kicked 36 | 1 . 4 . 4 27 . Crushed . | . . . . . . . Highest Temperature 555 | . 36 . . 218 165 555 Average Temperature 100 | . 20 . . 113 41 184 Received Heat Transfer 1599 | . . . . 228 627 744 Effects 14 | . . . . 1 . 13 Shutdowns 5 | . . . . . . 5 Energy Bleed 3 | . . . . . . 3 Interference 1 | . . . . 1 . . Matter Decay 3 | . . . . . . 3 Damage (minor) 1 | . . . . . . 1 Damage (core) 1 | . . . . . . 1 Siege Activations . | . . . . . . . Robots Corrupted . | . . . . . . . Combat Hostiles . | . . . . . . . Parts Fried . | . . . . . . . Impact Corruptions 1 | . . . . . 1 . Robots Melted . | . . . . . . . Combat Hostiles . | . . . . . . . Parts Melted 7 | . . . . . . 7 Heat Transferred 1826 | . 50 . . . . 1776 Parts Sabotaged . | . . . . . . . Parts Stolen . | . . . . . . . Parts Stripped . | . . . . . . . Power Chain Reactions 1 | . 1 . . . . . Alert | -11 -10 -10 -10 -9 -8 -8 ------- Run | Yrd Mat Min Exi Min Mat Gar Peak Influence 428 | . 75 24 . 101 267 428 Initial 24 | . . 24 . . . 7 Average 122 | . 56 21 . 24 114 299 Maximum Alert Level 2 | . . . . . 1 2 Low Security (%) 72 | 100 100 100 . 100 77 13 Level 1 21 | . . . . . 22 57 Level 2 6 | . . . . . . 29 Level 3 . | . . . . . . . Level 4 . | . . . . . . . Level 5 . | . . . . . . . High Security . | . . . . . . . Max Security . | . . . . . . . Squads Dispatched 4 | . . . . . 4 . Investigation 2 | . . . . . 2 . Extermination . | . . . . . . . Reinforcement 2 | . . . . . 2 . Assault . | . . . . . . . Garrison . | . . . . . . . Intercept . | . . . . . . . Searches Triggered . | . . . . . . . Construction Impeded . | . . . . . . . Haulers Reinforced . | . . . . . . . Active Scanning Responses . | . . . . . . . Cargo Convoy Interrupts . | . . . . . . . Stealth | -11 -10 -10 -10 -9 -8 -8 --------- Run | Yrd Mat Min Exi Min Mat Gar Distress Signals 3 | . . . . . 3 . Communications Jammed . | . . . . . . . Distress Signals . | . . . . . . . Times Spotted 84 | . 3 . . 5 44 32 Peak Tracking Total 9 | . 3 . . 3 5 9 Tactical Retreats 12 | . . . . 2 9 1 Traps | -11 -10 -10 -10 -9 -8 -8 ------- Run | Yrd Mat Min Exi Min Mat Gar Traps Triggered 5 | . . . . . 1 4 Indirectly . | . . . . . . . Trap Hack Attempts . | . . . . . . . Triggered . | . . . . . . . Disarmed . | . . . . . . . Reprogrammed 6 | . 6 . . . . . Reused . | . . . . . . . Traps Extracted . | . . . . . . . Installed . | . . . . . . . Triggered . | . . . . . . . Machines | -11 -10 -10 -10 -9 -8 -8 ---------- Run | Yrd Mat Min Exi Min Mat Gar Machines Disabled 1 | . . . . . 1 . Max in Single Turn 1 | . . . . . 1 . Machines Repaired . | . . . . . . . Machines Dismantled . | . . . . . . . Machines Sabotaged . | . . . . . . . Overloaded Fab Kills . | . . . . . . . Hacking | -11 -10 -10 -10 -9 -8 -8 --------- Run | Yrd Mat Min Exi Min Mat Gar Machines Accessed 6 | . 1 . 1 . 4 . Terminals 3 | . 1 . . . 2 . Fabricators . | . . . . . . . Repair Stations 1 | . . . . . 1 . Recycling Units . | . . . . . . . Scanalyzers . | . . . . . . . Garrison Access 1 | . . . . . 1 . Total Hacks 33 | . 2 . 23 . 8 . Successful 32 | . 2 . 23 . 7 . Failed 1 | . . . . . 1 . Catastrophic . | . . . . . . . Database Lockouts . | . . . . . . . Manual . | . . . . . . . Terminals 7 | . 2 . . . 5 . Fabricators . | . . . . . . . Repair Stations 2 | . . . . . 2 . Recycling Units . | . . . . . . . Scanalyzers . | . . . . . . . Garrison Access 1 | . . . . . 1 . Terminal Hacks 29 | . 2 . 23 . 4 . Record 26 | . . . 23 . 3 . Prototype ID Bank 1 | . . . . . 1 . Locate Traps 1 | . 1 . . . . . Reprogram Traps 1 | . 1 . . . . . Fabricator Hacks . | . . . . . . . Repair Station Hacks 2 | . . . . . 2 . Scan Component 1 | . . . . . 1 . Repair 1 | . . . . . 1 . Recycling Unit Hacks . | . . . . . . . Scanalyzer . | . . . . . . . Garrison Access Hacks 1 | . . . . . 1 . Unlock Access 1 | . . . . . 1 . Unauthorized Hacks . | . . . . . . . Terminals . | . . . . . . . Fabricators . | . . . . . . . Repair Stations . | . . . . . . . Recycling Units . | . . . . . . . Scanalyzers . | . . . . . . . Garrison Access . | . . . . . . . Data Cores Recovered . | . . . . . . . Used . | . . . . . . . Hacking Detections 2 | . . . . . 2 . Full Trace Events 1 | . . . . . 1 . Feedback Events . | . . . . . . . Feedback Blocked . | . . . . . . . Robot Schematics Acquired . | . . . . . . . Robots Built . | . . . . . . . Authchips . | . . . . . . . Time . | . . . . . . . Total Robot Build Rating . | . . . . . . . Part Schematics Acquired . | . . . . . . . Parts Built . | . . . . . . . Authchips . | . . . . . . . Time . | . . . . . . . Total Part Build Rating . | . . . . . . . Parts Repaired 1 | . . . . . 1 . Time 53 | . . . . . 53 . Parts Recycled . | . . . . . . . Recycled Matter . | . . . . . . . Retrieved Matter . | . . . . . . . Retrieved Components . | . . . . . . . Parts Scanalyzed . | . . . . . . . Part Schematics Acquired . | . . . . . . . Parts Damaged . | . . . . . . . Bothacking | -11 -10 -10 -10 -9 -8 -8 ------------ Run | Yrd Mat Min Exi Min Mat Gar Used RIF Installer . | . . . . . . . Robots Hacked . | . . . . . . . Non-combat . | . . . . . . . Combat . | . . . . . . . Robot Hacks Applied . | . . . . . . . Relay Couplers Released . | . . . . . . . Fabnet Peak Effective % . | . . . . . . . Robots Rewired . | . . . . . . . Allies Hacked . | . . . . . . . Hacks Repelled . | . . . . . . . Allies | -11 -10 -10 -10 -9 -8 -8 -------- Run | Yrd Mat Min Exi Min Mat Gar Total Allies 2 | . . . . 2 . . Largest Group 2 | . . . . 2 2 . Highest-Rated Group 38 | . . . . 38 38 . Highest-Rated Ally 31 | . . . . 31 31 . Total Orders . | . . . . . . . Ally Attacks 4 | . . . . 2 2 . Total Damage 84 | . . . . 42 42 . Kills 2 | . . . . 1 1 . Allies Corrupted 1 | . . . . . 1 . Allies Melted . | . . . . . . . Intel | -11 -10 -10 -10 -9 -8 -8 ------- Run | Yrd Mat Min Exi Min Mat Gar Robot Analysis Total . | . . . . . . . Derelict Logs Recovered 2 | . . 1 . 1 . . Drone Launches . | . . . . . . . Drone Recoveries . | . . . . . . . Exploration | -11 -10 -10 -10 -9 -8 -8 ------------- Run | Yrd Mat Min Exi Min Mat Gar Turns Passed 5687 | 87 372 438 458 1155 2013 1164 Spaces Moved 2115 | 66 198 227 215 334 647 428 Core 38 | 38 . . . . . . Treads . | . . . . . . . Legs 2077 | 28 198 227 215 334 647 428 Wheels . | . . . . . . . Hover . | . . . . . . . Flight . | . . . . . . . Fastest Speed 50 | 50 120 190 190 330 200 192 Average Speed 224 | 106 179 190 212 330 229 198 Slowest Speed 680 | 200 190 190 330 330 330 680 Overloaded Moves . | . . . . . . . Propulsion Burnouts . | . . . . . . . Robots Hopped . | . . . . . . . Cave-ins Triggered . | . . . . . . . Exploration Rate (%) 40 | 5 27 53 51 59 52 38 Regions Visited 6 Branch Regions 3 Pre-discovered Areas 1 | . . . 1 . . . Known Exits Taken 1 | . . . . . 1 . Unknown Exits Taken 5 | 1 1 1 1 1 . . Scrap Searched 2 | . . . . 2 . . Spaces Dug . | . . . . . . . Terrain Destroyed 19 | . 5 . . . . 14 Melee . | . . . . . . . Projectile . | . . . . . . . AOE 19 | . 5 . . . . 14 Terrain Rammed . | . . . . . . . Walls Destroyed . | . . . . . . . Machines Disabled . | . . . . . . . Actions | -11 -10 -10 -10 -9 -8 -8 --------- Run | Yrd Mat Min Exi Min Mat Gar Total 2665 | 81 209 231 218 355 970 601 Wait 195 | . . . . . 142 53 Move 2107 | 65 197 226 214 333 646 426 Hop . | . . . . . . . Pick Up 59 | 9 8 1 1 1 30 9 Fast Attach 3 | 3 . . . . . . Attach 37 | 3 1 . . 2 14 17 Detach 5 | . . . . . 1 4 Swap 6 | . . . 1 1 4 . Drop 15 | . . . 2 . 13 . Fire 165 | . 3 . . 14 93 55 Melee 32 | . . . . . . 32 Ram . | . . . . . . . Kick 36 | 1 . 4 . 4 27 . Crush . | . . . . . . . Escape Stasis 5 | . . . . . . 5 Rewire . | . . . . . . . Trap . | . . . . . . . Miscellaneous . | . . . . . . . Route ------- -11/Scrapyard -10/Materials -10/Mines (discovered 2 exits: [*Mat] / *Exi) -10/Exiles -9/Mines -8/Materials -8/Garrison (discovered 1 exit: [*Fac]) History --------- Turn | Location | Event 11 | -11/Scrapyard | Discovered new exit (range 13) 88 | -11/Scrapyard | Entered Materials 317 | -10/Materials | Build established: Mutant 360 | -10/Materials | Discovered new exit (range 9) 460 | -10/Materials | Entered Mines 550 | -10/Mines | Learned Materials garrison access intel 641 | -10/Mines | YI-UF0 nonchalantly dropped a Grenade Launcher on the ground 727 | -10/Mines | Found a hidden stash of uninstalled traps 821 | -10/Mines | Discovered new exit (range 9) 885 | -10/Mines | Deemed a non-threat by the Exiles lab entrance 887 | -10/Mines | Discovered new exit (range 5) 898 | -10/Mines | Entered Exiles 961 | -10/Exiles | Met 8R-AWN 1009 | -10/Exiles | Met EX-HEX 1094 | -10/Exiles | Met EX-DEC 1121 | -10/Exiles | Learned location of Zion (-7) 1320 | -10/Exiles | Discovered new exit (range 12) 1356 | -10/Exiles | Entered Mines 1662 | -9/Mines | Discovered new exit (range 5) 1751 | -9/Mines | Found a damaged Exp. Sensor Array with a note attached 1758 | -9/Mines | Found Prototype Device 1788 | -9/Mines | Learned location of 1 exit from Proximity Caves 2511 | -9/Mines | Entered Materials 2511 | -8/Materials | Accompanied by 2 allies 2511 | -8/Materials | Evolved 4 slots: Power x1, Propulsion x2, Utility x1 2512 | -8/Materials | Loaded intel: 1 garrison access location 2516 | -8/Materials | Led the pair of lost Derelicts to an unsafe place 3034 | -8/Materials | Repaired Corrupted Carbon-fiber Leg 4490 | -8/Materials | Identified exit to Garrison 4524 | -8/Materials | Entered Garrison 4639 | -8/Garrison | Triggered checkpoint 4707 | -8/Garrison | Destroyed 12 combat bots 4712 | -8/Garrison | Triggered checkpoint 4714 | -8/Garrison | Lost 4 parts (1p1n1u1w) 4860 | -8/Garrison | Triggered checkpoint 5006 | -8/Garrison | Core integrity fell below 50% 5026 | -8/Garrison | Lost 4 parts (1p3n) 5133 | -8/Garrison | Discovered new exit (range 14) 5158 | -8/Garrison | Attempted to access garrison exit controls, blocked by remote lockdown 5256 | -8/Garrison | Triggered checkpoint 5308 | -8/Garrison | Triggered checkpoint 5365 | -8/Garrison | Build established: Scavenger-Mutant 5422 | -8/Garrison | Triggered checkpoint 5650 | -8/Garrison | Triggered checkpoint 5656 | -8/Garrison | Core integrity fell below 20% 5688 | -8/Garrison | Triggered checkpoint 5688 | -8/Garrison | Destroyed by G-47 Trooper with Particle Gun Last Messages --------------- Acquired 20 matter. The unstable cave ceiling collapses. Triggered Alarm Trap. An alarm sounds. Beams of light sweep through the air. An alarm sounds. Carbon-fiber Leg destroyed. Critical hit (Burn: +37). Aluminum Leg destroyed. Imp. Ion Engine destroyed. G-47 Trooper destroyed. Acquired 3 matter. Hvy. Assault Rifle destroyed. Titanium Leg destroyed. Imp. Ion Engine destroyed. G-47 Trooper destroyed. Beams of light sweep through the air. An alarm sounds. Aluminum Leg destroyed. Critical hit (Burn: +37). Map ----- +----------------------------------------------------+ | ???????????????????????????????????????????# #?? | | ???????????????????????????????????????????# #?? | | ???????????????????????????????????????????# #?? | | ???????????????????????????????????????????# ##? | | ???????????????????????????????????????????# #? | | ???????????????????????????????????????????# #? | | ???????????????????????????????????????????# ##? | | ???????????????????????????????????????????# #?? | | ???????????????????????????????????????????# #?? | | ???????????????????????????????????????????# #?? | | ?????????????????????????????????????????### #?? | | ?????????????????????????????????????????# #?? | | ?????????????????????????????????????????# #?? | | ?????????????????????????????????????????# #?? | | ?????????????????????????????????????????### #?? | | ???????????????????????????????????????????# #?? | | ???????????????????????????????????????????# #?? | | ???????????????????????????????????????????#! #?? | | ??????????????????????????????????????######/= ### | | ??????????????????????????????????????#=%=[=% | | ??????????????????????????????????????# ####! ### | | ??????????????????????????????????????#!#??#= #?? | | ??????????????????????????????????????#!#??# #?? | | ???????????????????????######?????????#%#??# ^^#?? | | ??????????????????#????# g =#?????????#!#??# #?? | | ??????????????????# ##%@*%########### #### #?? | | ??????????????????# [ =[ #?? | | ??????????????????# #?? | | ??????????????????# #?? | | ??????????????????# ^ ## ## ###############?? | | ??????????????????# ^^## ## ###?????????????? | | ?????????????????g #?????????????? | | ????????????????#g #?????????????? | | ????????????????#g #?????????????? | | ????????????????# " [ #???????????### | | ????????????????#?# ## # = ###???????????#"" | | ????????????????### ## % ###############" | | ??????????????? ^^ [ | | ??????????????? [^ | | ??????????????????# %^= [ ####### ###### | | ??????????????????## ## ## # #???# #????# | | ???????????????????# ??# # != ##???# #????# | | ???????????????????????###### # #????# | | ???????????????????????????# # ######## #????#"! | | ???????????????????????????### #??????# #????#"" | | ?????????????????????????????# #??????# #????### | | ?????????????????????????????# #??????# #??????? | | ?????????????????????????????# ######## ######## | | ?????????????????????????????# | | ?????????????????????????????# | +----------------------------------------------------+ Best States ------------- Heat Dissipation 31 Energy Generation 23 Energy Capacity 440 Matter Stores 300 Matter Capacity 300 Sight Range 16 Terrain Scan Density 10 Armor Coverage 150 Resistance: KI 20 Resistance: TH 20 Resistance: EX 20 Resistance: EM 20 Resistance: I 20 Resistance: S 20 Resistance: P 20 Evasion (%) 55 Offensive Hacking 10 Authchip Count 2 Item Schematics ----------------- None Robot Schematics ------------------ None Fabricated ------------ Nothing Alien Tech Used ----------------- None Achievements -------------- Backstab Challenges ------------ None Game ------ Seed LightningSmartbombMatrix Manual? 0 Play Time 00:52:42 Cumulative 7.6 hours Start 2024.03.03 @ 04:35:05 End 2024.03.03 @ 05:28:48 Sessions 1 Manual Loads 0 Difficulty Adventurer Special Mode None Game No. 13 Rogue 4 Adventurer 9 Explorer 0 Win Type - Total 0 Types 0/0/0/0/0/0/0/0/0 Lore% 7 Gallery% 11 Achievement% 10 Wizard Run 0 Options --------- Layout 1 ASCII 0 Keyboard 0 Movement Arrows Keybinds 0 Fullscreen 2 Font 24/Smallcaps Map View 50x35 Zoom Use 0% Tactical HUD 0 Map Filters NONE Filters NONE Steam 1 RUN: 4d95aa53-5bc4-45ba-9fdd-cefb5a2d2dc1